fUST/lending_fUST_20250912
["ID","MTS","AMOUNT","RATE_DAILY","PERIOD"]
[384906970,1757625045317,-597.52,0.00015268,2]
[384906972,1757625045326,-480.0,0.00015268,2]
[384906974,1757625045335,-1000.0,0.000153,2]
[384906976,1757625045345,-480.0,0.00015367,2]
[384906978,1757625045354,-2241.53,0.00015441,2]
[384906981,1757625045364,-865.88,0.00015441,2]
[384906983,1757625045373,-480.0,0.00015441,2]
[384906985,1757625045382,-480.0,0.00015441,2]
[384906987,1757625045390,-480.0,0.00015441,2]
[384906988,1757625045400,-658.19,0.00015441,2]
[384906991,1757625045410,-1031.8,0.00015441,2]
[384906993,1757625045419,-928.67,0.00015441,2]
[384906995,1757625045429,-480.0,0.00015441,2]
[384906996,1757625045438,-480.0,0.00015441,2]
[384906998,1757625045447,-480.0,0.00015441,2]
[384907000,1757625045456,-480.0,0.00015441,2]
[384907002,1757625045465,-480.0,0.00015441,2]
[384907004,1757625045474,-924.32,0.00015441,2]
[384907006,1757625045484,-480.0,0.00015441,2]
[384907008,1757625045493,-1704.95,0.00015441,2]
[384907011,1757625045502,-480.0,0.00015441,2]
[384907013,1757625045511,-480.0,0.00015441,2]
[384907016,1757625045519,-480.0,0.00015442,2]
[384907019,1757625045529,-687.45,0.00015442,2]
[384907021,1757625045538,-480.0,0.00015442,2]
[384907023,1757625045547,-296.94584541,0.00015442,2]
[384907025,1757625045556,-480.0,0.00015442,2]
[384907027,1757625045566,-480.0,0.00015442,2]
[384907029,1757625045576,-3326.37,0.00015442,2]
[384907040,1757625045673,-480.0,0.00015442,2]
[384907042,1757625045682,-480.0,0.00015442,2]
[384907044,1757625045692,-480.0,0.00015442,2]
[384907046,1757625045701,-937.75,0.00015442,2]
[384907048,1757625045711,-480.0,0.00015442,2]
[384907050,1757625045720,-589.76,0.00015442,2]
[384907052,1757625045729,-1157.92,0.00015442,2]
[384907054,1757625045738,-480.0,0.00015442,2]
[384907056,1757625045747,-480.0,0.00015442,2]
[384907058,1757625045756,-480.0,0.00015442,2]
[384907060,1757625045765,-480.0,0.00015442,2]
[384907062,1757625045775,-490.91,0.00015442,2]
[384907064,1757625045784,-979.73,0.00015442,2]
[384907066,1757625045794,-480.0,0.00015442,2]
[384907068,1757625045803,-8625.72,0.00015442,2]
[384907070,1757625045812,-480.0,0.00015442,2]
[384907072,1757625045822,-480.0,0.00015442,2]
[384907074,1757625045831,-480.0,0.00015442,2]
[384907076,1757625045839,-480.0,0.00015442,2]
[384907078,1757625045848,-976.0,0.00015455,2]
[384907080,1757625045858,-634.0,0.00015455,2]
[384907082,1757625045868,-2155.0,0.00015455,2]
[384907084,1757625045878,-4079.0,0.00015455,2]
[384907086,1757625045887,-409.0,0.00015455,2]
[384907088,1757625045896,-1500.0,0.00015535,2]
[384907090,1757625045905,-1500.0,0.00015535,2]
[384907092,1757625045914,-1500.0,0.00015535,2]
[384907094,1757625045923,-1500.0,0.00015536,2]
[384907096,1757625045932,-486.74,0.00015542,2]
[384907098,1757625045941,-480.0,0.00015542,2]
[384907100,1757625045950,-538.62,0.00015542,2]
[384907102,1757625045959,-644.27,0.00015542,2]
[384907104,1757625045968,-597.52,0.00015542,2]
[384907105,1757625045978,-480.0,0.00015542,2]
[384907108,1757625045987,-480.0,0.00015641,2]
[384907110,1757625045997,-160.0,0.00015641,2]
[384907111,1757625046006,-505.73277401,0.00015688,2]
[384907113,1757625046015,-720.0,0.00015704,2]
[384907115,1757625046025,-2241.53,0.00015715,2]
[384907118,1757625046034,-865.88,0.00015715,2]
[384907120,1757625046043,-480.0,0.00015715,2]
[384907121,1757625046055,-480.0,0.00015715,2]
[384907124,1757625046064,-658.19,0.00015715,2]
[384907126,1757625046074,-1031.8,0.00015715,2]
[384907128,1757625046084,-928.67,0.00015715,2]
[384907130,1757625046093,-480.0,0.00015715,2]
[384907131,1757625046110,-480.0,0.00015715,2]
[384907133,1757625046120,-480.0,0.00015715,2]
[384907135,1757625046129,-480.0,0.00015715,2]
[384907137,1757625046138,-480.0,0.00015715,2]
[384907139,1757625046148,-924.32,0.00015715,2]
[384907141,1757625046157,-480.0,0.00015715,2]
[384907144,1757625046177,-1704.95,0.00015715,2]
[384907146,1757625046186,-480.0,0.00015715,2]
[384907148,1757625046195,-480.0,0.00015715,2]
[384907150,1757625046204,-480.0,0.00015716,2]
[384907152,1757625046213,-687.45,0.00015716,2]
[384907154,1757625046222,-511.88731478,0.00015716,2]
[384907156,1757625046231,-530.36305395,0.00015716,2]
[384907158,1757625046240,-480.0,0.00015716,2]
[384907160,1757625046249,-3326.37,0.00015716,2]
[384907162,1757625046258,-480.0,0.00015716,2]
[384907164,1757625046267,-190.25,0.00015716,2]
[384907166,1757625046276,-620.48,0.00015716,2]
[384907168,1757625046285,-937.75,0.00015716,2]
[384907170,1757625046293,-480.0,0.00015716,2]
[384907172,1757625046302,-1157.92,0.00015716,2]
[384907174,1757625046311,-480.0,0.00015716,2]
[384907176,1757625046320,-480.0,0.00015716,2]
[384907178,1757625046329,-480.0,0.00015716,2]
[384907179,1757625046338,-480.0,0.00015716,2]
[384907181,1757625046347,-490.91,0.00015716,2]
[384907183,1757625046356,-979.73,0.00015716,2]
[384907185,1757625046366,-480.0,0.00015716,2]
[384907187,1757625046375,-8625.72,0.00015716,2]
[384907189,1757625046384,-480.0,0.00015716,2]
[384907191,1757625046393,-480.0,0.00015716,2]
[384907193,1757625046403,-480.0,0.00015716,2]
[384907195,1757625046412,-480.0,0.00015716,2]
[384907197,1757625046421,-486.74,0.00015816,2]
[384907199,1757625046430,-480.0,0.00015816,2]
[384907201,1757625046439,-538.62,0.00015816,2]
[384907203,1757625046448,-644.27,0.00015816,2]
[384907205,1757625046457,-597.52,0.00015816,2]
[384907207,1757625046467,-480.0,0.00015816,2]
[384907209,1757625046476,-1000.0,0.00015848,2]
[384907211,1757625046486,-376.88116183,0.00015915,2]
[384907213,1757625046494,-2241.53,0.00015989,2]
[384907215,1757625046503,-865.88,0.00015989,2]
[384907217,1757625046512,-480.0,0.00015989,2]
[384907219,1757625046521,-480.0,0.00015989,2]
[384907221,1757625046530,-658.19,0.00015989,2]
[384907223,1757625046539,-1031.8,0.00015989,2]
[384907225,1757625046548,-928.67,0.00015989,2]
[384907227,1757625046558,-480.0,0.00015989,2]
[384907229,1757625046567,-480.0,0.00015989,2]
[384907231,1757625046576,-480.0,0.00015989,2]
[384907233,1757625046585,-480.0,0.00015989,2]
[384907235,1757625046594,-480.0,0.00015989,2]
[384907237,1757625046604,-924.32,0.00015989,2]
[384907239,1757625046612,-480.0,0.00015989,2]
[384907241,1757625046621,-1704.95,0.00015989,2]
[384907243,1757625046630,-480.0,0.00015989,2]
[384907245,1757625046638,-480.0,0.00015989,2]
[384907247,1757625046647,-480.0,0.0001599,2]
[384907248,1757625046656,-687.45,0.0001599,2]
[384907250,1757625046665,-480.0,0.0001599,2]
[384907252,1757625046673,-3326.37,0.0001599,2]
[384907254,1757625046682,-480.0,0.0001599,2]
[384907256,1757625046691,-937.75,0.0001599,2]
[384907258,1757625046700,-1157.92,0.0001599,2]
[384907260,1757625046709,-480.0,0.0001599,2]
[384907262,1757625046717,-480.0,0.0001599,2]
[384907264,1757625046726,-305.28,0.0001599,2]
[384907266,1757625046735,-480.0,0.0001599,2]
[384907268,1757625046744,-490.91,0.0001599,2]
[384907270,1757625046754,-979.73,0.0001599,2]
[384907272,1757625046763,-480.0,0.0001599,2]
[384907274,1757625046772,-8625.72,0.0001599,2]
[384907276,1757625046781,-353.92,0.0001599,2]
[384907278,1757625046790,-480.0,0.0001599,2]
[384907280,1757625046799,-480.0,0.0001599,2]
[384907282,1757625046808,-480.0,0.0001599,2]
[384907284,1757625046817,-2000.0,0.00016083,2]
[384907286,1757625046826,-2063.03354178,0.00016083,2]
[384907288,1757625046836,-486.74,0.0001609,2]
[384907290,1757625046845,-480.0,0.0001609,2]
[384907292,1757625046854,-538.62,0.0001609,2]
[384907294,1757625046864,-644.27,0.0001609,2]
[384907296,1757625046873,-597.52,0.0001609,2]
[384907298,1757625046883,-151.0,0.000161,2]
[384907300,1757625046892,-260.0,0.00016189,2]
[384907302,1757625046902,-2241.53,0.00016263,2]
[384907304,1757625046911,-865.88,0.00016263,2]
[384907306,1757625046920,-480.0,0.00016263,2]
[384907308,1757625046929,-480.0,0.00016263,2]
[384907310,1757625046938,-658.19,0.00016263,2]
[384907312,1757625046947,-1031.8,0.00016263,2]
[384907314,1757625046957,-928.67,0.00016263,2]
[384907316,1757625046967,-165.69,0.00016263,2]
[384907318,1757625046976,-480.0,0.00016263,2]
[384907320,1757625046985,-480.0,0.00016263,2]
[384907322,1757625046994,-480.0,0.00016263,2]
[384907324,1757625047003,-924.32,0.00016263,2]
[384907326,1757625047012,-480.0,0.00016263,2]
[384907328,1757625047022,-1704.95,0.00016263,2]
[384907330,1757625047031,-480.0,0.00016263,2]
[384907332,1757625047041,-480.0,0.00016263,2]
[384907334,1757625047051,-480.0,0.00016264,2]
[384907336,1757625047060,-687.45,0.00016264,2]
[384907338,1757625047069,-480.0,0.00016264,2]
[384907340,1757625047079,-3326.37,0.00016264,2]
[384907342,1757625047088,-480.0,0.00016264,2]
[384907344,1757625047100,-937.75,0.00016264,2]
[384907345,1757625047110,-1157.92,0.00016264,2]
[384907346,1757625047120,-274.56,0.00016264,2]
[384907347,1757625047129,-480.0,0.00016264,2]
[384907348,1757625047138,-490.91,0.00016264,2]
[384907349,1757625047146,-979.73,0.00016264,2]
[384907350,1757625047155,-8625.72,0.00016264,2]
[384907351,1757625047164,-480.0,0.00016264,2]
[384907352,1757625047174,-480.0,0.00016264,2]
[384907353,1757625047183,-480.0,0.00016264,2]
[384907355,1757625047193,-486.74,0.00016364,2]
[384907357,1757625047202,-480.0,0.00016364,2]
[384907359,1757625047211,-538.62,0.00016364,2]
[384907361,1757625047221,-644.27,0.00016364,2]
[384907363,1757625047230,-597.52,0.00016364,2]
[384907365,1757625047239,-3000.0,0.000164,2]
[384907367,1757625047248,-206.68011457,0.00016438,2]
[384907369,1757625047258,-2241.53,0.00016537,2]
[384907371,1757625047267,-865.88,0.00016537,2]
[384907373,1757625047277,-480.0,0.00016537,2]
[384907375,1757625047286,-260.0,0.00016537,2]
[384907377,1757625047295,-658.19,0.00016537,2]
[384907379,1757625047304,-1031.8,0.00016537,2]
[384907381,1757625047313,-928.67,0.00016537,2]
[384907383,1757625047322,-480.0,0.00016537,2]
[384907385,1757625047331,-480.0,0.00016537,2]
[384907387,1757625047340,-480.0,0.00016537,2]
[384907389,1757625047350,-924.32,0.00016537,2]
[384907391,1757625047359,-480.0,0.00016537,2]
[384907393,1757625047368,-1704.95,0.00016537,2]
[384907395,1757625047377,-480.0,0.00016537,2]
[384907397,1757625047386,-485.1,0.00016537,2]
[384907399,1757625047395,-480.0,0.00016538,2]
[384907401,1757625047404,-687.45,0.00016538,2]
[384907403,1757625047413,-480.0,0.00016538,2]
[384907405,1757625047422,-3326.37,0.00016538,2]
[384907407,1757625047432,-480.0,0.00016538,2]
[384907409,1757625047441,-937.75,0.00016538,2]
[384907411,1757625047450,-1157.92,0.00016538,2]
[384907413,1757625047459,-480.0,0.00016538,2]
[384907415,1757625047468,-490.91,0.00016538,2]
[384907417,1757625047477,-979.73,0.00016538,2]
[384907419,1757625047486,-8625.72,0.00016538,2]
[384907421,1757625047495,-480.0,0.00016538,2]
[384907423,1757625047504,-480.0,0.00016538,2]
[384907425,1757625047513,-480.0,0.00016538,2]
[384907427,1757625047522,-587.0,0.00016565,2]
[384907439,1757625047612,-2000.0,0.00016631,2]
[384907441,1757625047622,-486.74,0.00016638,2]
[384907443,1757625047631,-538.62,0.00016638,2]
[384907445,1757625047639,-644.27,0.00016638,2]
[384907447,1757625047648,-597.52,0.00016638,2]
[384907449,1757625047657,-151.0,0.000167,2]
[384907451,1757625047666,-360.0,0.00016737,2]
[384907453,1757625047675,-2241.53,0.00016811,2]
[384907455,1757625047684,-865.88,0.00016811,2]
[384907457,1757625047693,-480.0,0.00016811,2]
[384907459,1757625047703,-658.19,0.00016811,2]
[384907461,1757625047713,-1031.8,0.00016811,2]
[384907463,1757625047723,-928.67,0.00016811,2]
[384907464,1757625047732,-480.0,0.00016811,2]
[384907466,1757625047742,-480.0,0.00016811,2]
[384907468,1757625047751,-480.0,0.00016811,2]
[384907471,1757625047760,-924.32,0.00016811,2]
[384907473,1757625047769,-480.0,0.00016811,2]
[384907475,1757625047778,-1704.95,0.00016811,2]
[384907477,1757625047788,-480.0,0.00016811,2]
[384907479,1757625047797,-687.45,0.00016812,2]
[384907481,1757625047807,-480.0,0.00016812,2]
[384907483,1757625047816,-3326.37,0.00016812,2]
[384907485,1757625047825,-480.0,0.00016812,2]
[384907487,1757625047834,-937.75,0.00016812,2]
[384907489,1757625047843,-1157.92,0.00016812,2]
[384907491,1757625047852,-480.0,0.00016812,2]
[384907493,1757625047861,-490.91,0.00016812,2]
[384907495,1757625047870,-979.73,0.00016812,2]
[384907497,1757625047879,-8625.72,0.00016812,2]
[384907498,1757625047888,-480.0,0.00016812,2]
[384907500,1757625047897,-269.04,0.00016812,2]
[384907502,1757625047907,-480.0,0.00016812,2]
[384907505,1757625047916,-486.74,0.00016912,2]
[384907507,1757625047925,-538.62,0.00016912,2]
[384907509,1757625047935,-644.27,0.00016912,2]
[384907510,1757625047944,-597.52,0.00016912,2]
[384907512,1757625047953,-500.0,0.00017018,2]
[384907514,1757625047962,-2241.53,0.00017085,2]
[384907517,1757625047971,-865.88,0.00017085,2]
[384907519,1757625047981,-480.0,0.00017085,2]
[384907521,1757625047990,-658.19,0.00017085,2]
[384907523,1757625047999,-1031.8,0.00017085,2]
[384907524,1757625048008,-928.67,0.00017085,2]
[384907526,1757625048017,-480.0,0.00017085,2]
[384907528,1757625048026,-480.0,0.00017085,2]
[384907530,1757625048036,-480.0,0.00017085,2]
[384907532,1757625048046,-924.32,0.00017085,2]
[384907535,1757625048055,-190.5,0.00017085,2]
[384907537,1757625048064,-1704.95,0.00017085,2]
[384907539,1757625048074,-480.0,0.00017085,2]
[384907541,1757625048084,-687.45,0.00017086,2]
[384907543,1757625048094,-480.0,0.00017086,2]
[384907545,1757625048110,-3326.37,0.00017086,2]
[384907547,1757625048123,-480.0,0.00017086,2]
[384907548,1757625048132,-937.75,0.00017086,2]
[384907550,1757625048142,-1157.92,0.00017086,2]
[384907553,1757625048151,-480.0,0.00017086,2]
[384907554,1757625048160,-490.91,0.00017086,2]
[384907556,1757625048170,-979.73,0.00017086,2]
[384907558,1757625048180,-8625.72,0.00017086,2]
[384907560,1757625048189,-222.6,0.00017086,2]
[384907562,1757625048198,-480.0,0.00017086,2]
[384907564,1757625048208,-486.74,0.00017186,2]
[384907566,1757625048216,-538.62,0.00017186,2]
[384907568,1757625048225,-644.27,0.00017186,2]
[384907571,1757625048235,-597.52,0.00017186,2]
[384907573,1757625048244,-864.0,0.00017274,2]
[384907574,1757625048253,-460.0,0.00017285,2]
[384907577,1757625048263,-2241.53,0.00017359,2]
[384907578,1757625048272,-865.88,0.00017359,2]
[384907580,1757625048281,-583.16795163,0.00017359,2]
[384907583,1757625048290,-658.19,0.00017359,2]
[384907584,1757625048300,-1031.8,0.00017359,2]
[384907587,1757625048309,-928.67,0.00017359,2]
[384907588,1757625048319,-480.0,0.00017359,2]
[384907590,1757625048328,-480.0,0.00017359,2]
[384907593,1757625048337,-480.0,0.00017359,2]
[384907595,1757625048347,-924.32,0.00017359,2]
[384907597,1757625048356,-1704.95,0.00017359,2]
[384907598,1757625048366,-480.0,0.00017359,2]
[384907601,1757625048375,-687.45,0.0001736,2]
[384907603,1757625048384,-480.0,0.0001736,2]
[384907604,1757625048393,-3326.37,0.0001736,2]
[384907607,1757625048403,-480.0,0.0001736,2]
[384907608,1757625048412,-937.75,0.0001736,2]
[384907611,1757625048421,-1157.92,0.0001736,2]
[384907612,1757625048431,-480.0,0.0001736,2]
[384907615,1757625048440,-490.91,0.0001736,2]
[384907616,1757625048450,-979.73,0.0001736,2]
[384907619,1757625048459,-8625.72,0.0001736,2]
[384907620,1757625048468,-480.0,0.0001736,2]
[384907622,1757625048477,-486.74,0.0001746,2]
[384907624,1757625048486,-538.62,0.0001746,2]
[384907626,1757625048495,-644.27,0.0001746,2]
[384907628,1757625048503,-597.52,0.0001746,2]
[384907630,1757625048512,-2241.53,0.00017633,2]
[384907632,1757625048522,-865.88,0.00017633,2]
[384907634,1757625048531,-658.19,0.00017633,2]
[384907636,1757625048540,-1031.8,0.00017633,2]
[384907638,1757625048550,-928.67,0.00017633,2]
[384907641,1757625048560,-480.0,0.00017633,2]
[384907643,1757625048570,-480.0,0.00017633,2]
[384907644,1757625048579,-480.0,0.00017633,2]
[384907647,1757625048588,-924.32,0.00017633,2]
[384907648,1757625048597,-1704.95,0.00017633,2]
[384907651,1757625048607,-480.0,0.00017633,2]
[384907653,1757625048616,-687.45,0.00017634,2]
[384907655,1757625048627,-480.0,0.00017634,2]
[384907657,1757625048636,-3326.37,0.00017634,2]
[384907659,1757625048646,-480.0,0.00017634,2]
[384907661,1757625048655,-937.75,0.00017634,2]
[384907663,1757625048666,-1157.92,0.00017634,2]
[384907665,1757625048675,-384.52050743,0.00017634,2]
[384907667,1757625048685,-490.91,0.00017634,2]
[384907669,1757625048695,-979.73,0.00017634,2]
[384907671,1757625048704,-8625.72,0.00017634,2]
[384907673,1757625048713,-480.0,0.00017634,2]
[384907675,1757625048723,-486.74,0.00017734,2]
[384907677,1757625048732,-538.62,0.00017734,2]
[384907679,1757625048741,-644.27,0.00017734,2]
[384907681,1757625048750,-597.52,0.00017734,2]
[384907683,1757625048760,-560.0,0.00017833,2]
[384907685,1757625048769,-2241.53,0.00017907,2]
[384907687,1757625048778,-865.88,0.00017907,2]
[384907689,1757625048787,-658.19,0.00017907,2]
[384907691,1757625048797,-1031.8,0.00017907,2]
[384907693,1757625048806,-928.67,0.00017907,2]
[384907695,1757625048815,-480.0,0.00017907,2]
[384907697,1757625048825,-480.0,0.00017907,2]
[384907699,1757625048834,-280.12586366,0.00017907,2]
[384907701,1757625048843,-924.32,0.00017907,2]
[384907703,1757625048852,-1704.95,0.00017907,2]
[384907705,1757625048862,-480.0,0.00017907,2]
[384907706,1757625048871,-687.45,0.00017908,2]
[384907708,1757625048880,-480.0,0.00017908,2]
[384907711,1757625048890,-3326.37,0.00017908,2]
[384907713,1757625048900,-480.0,0.00017908,2]
[384907714,1757625048910,-937.75,0.00017908,2]
[384907717,1757625048919,-1157.92,0.00017908,2]
[384907718,1757625048929,-490.91,0.00017908,2]
[384907720,1757625048938,-979.73,0.00017908,2]
[384907723,1757625048948,-8625.72,0.00017908,2]
[384907724,1757625048958,-480.0,0.00017908,2]
[384907726,1757625048967,-500.0,0.00017914,2]
[384907728,1757625048976,-1000.0,0.00018,2]
[384907730,1757625048985,-486.74,0.00018008,2]
[384907732,1757625048994,-538.62,0.00018008,2]
[384907734,1757625049003,-644.27,0.00018008,2]
[384907736,1757625049013,-151.0,0.00018008,2]
[384907738,1757625049022,-597.52,0.00018008,2]
[384907740,1757625049031,-500.0,0.00018063,2]
[384907742,1757625049039,-500.69459586,0.00018063,2]
[384907744,1757625049048,-5022.4101721,0.00018082,2]
[384907746,1757625049058,-423.0,0.00018152,2]
[384907748,1757625049067,-2241.53,0.00018181,2]
[384907750,1757625049076,-865.88,0.00018181,2]
[384907752,1757625049086,-658.19,0.00018181,2]
[384907754,1757625049095,-1031.8,0.00018181,2]
[384907756,1757625049108,-928.67,0.00018181,2]
[384907758,1757625049117,-380.62275114,0.00018181,2]
[384907760,1757625049126,-480.0,0.00018181,2]
[384907762,1757625049135,-924.32,0.00018181,2]
[384907764,1757625049144,-1704.95,0.00018181,2]
[384907765,1757625049153,-154.50621897,0.00018181,2]
[384907767,1757625049162,-687.45,0.00018182,2]
[384907769,1757625049172,-480.0,0.00018182,2]
[384907771,1757625049184,-3326.37,0.00018182,2]
[384907773,1757625049193,-480.0,0.00018182,2]
[384907775,1757625049203,-937.75,0.00018182,2]
[384907777,1757625049212,-1157.92,0.00018182,2]
[384907779,1757625049221,-490.91,0.00018182,2]
[384907781,1757625049231,-979.73,0.00018182,2]
[384907783,1757625049241,-8625.72,0.00018182,2]
[384907785,1757625049250,-480.0,0.00018182,2]
[384907787,1757625049259,-500.0,0.00018219,2]
[384907789,1757625049269,-500.0,0.00018219,2]
[384907791,1757625049278,-500.0,0.00018262,2]
[384907793,1757625049287,-500.0,0.00018262,2]
[384907795,1757625049297,-502.90364955,0.00018262,2]
[384907797,1757625049306,-500.1783756,0.00018262,2]
[384907799,1757625049317,-500.0,0.00018262,2]
[384907801,1757625049326,-486.74,0.00018282,2]
[384907812,1757625049408,-538.62,0.00018282,2]
[384907814,1757625049426,-644.27,0.00018282,2]
[384907816,1757625049436,-597.52,0.00018282,2]
[384907818,1757625049445,-500.0,0.00018356,2]
[384907820,1757625049454,-500.0,0.00018356,2]
[384907822,1757625049464,-660.0,0.00018381,2]
[384907824,1757625049473,-500.0,0.00018384,2]
[384907826,1757625049482,-976.0,0.00018455,2]
[384907827,1757625049492,-634.0,0.00018455,2]
[384907829,1757625049502,-2155.0,0.00018455,2]
[384907831,1757625049511,-2241.53,0.00018455,2]
[384907833,1757625049520,-865.88,0.00018455,2]
[384907835,1757625049530,-658.19,0.00018455,2]
[384907837,1757625049539,-1031.8,0.00018455,2]
[384907839,1757625049549,-928.67,0.00018455,2]
[384907841,1757625049558,-480.0,0.00018455,2]
[384907843,1757625049567,-924.32,0.00018455,2]
[384907845,1757625049577,-1704.95,0.00018455,2]
[384907847,1757625049587,-409.0,0.00018455,2]
[384907849,1757625049596,-687.45,0.00018456,2]
[384907851,1757625049605,-480.0,0.00018456,2]
[384907853,1757625049615,-3326.37,0.00018456,2]
[384907855,1757625049624,-937.75,0.00018456,2]
[384907857,1757625049633,-1157.92,0.00018456,2]
[384907859,1757625049642,-490.91,0.00018456,2]
[384907861,1757625049652,-979.73,0.00018456,2]
[384907863,1757625049661,-8625.72,0.00018456,2]
[384907865,1757625049670,-480.0,0.00018456,2]
[384907867,1757625049679,-500.39823134,0.00018458,2]
[384907869,1757625049688,-500.12920781,0.00018458,2]
[384907871,1757625049697,-500.0,0.00018458,2]
[384907873,1757625049706,-500.0,0.00018467,2]
[384907875,1757625049715,-500.0,0.00018467,2]
[384907877,1757625049724,-500.0,0.00018467,2]
[384907879,1757625049733,-500.29843636,0.00018467,2]
[384907881,1757625049742,-500.0,0.00018467,2]
[384907883,1757625049751,-500.0,0.00018467,2]
[384907885,1757625049761,-500.52912716,0.00018467,2]
[384907887,1757625049769,-500.0,0.00018467,2]
[384907889,1757625049779,-500.19204623,0.00018467,2]
[384907891,1757625049788,-181.998117,0.00018493,2]
[384907893,1757625049797,-486.74,0.00018556,2]
[384907895,1757625049806,-538.62,0.00018556,2]
[384907897,1757625049815,-644.27,0.00018556,2]
[384907899,1757625049825,-597.52,0.00018556,2]
[384907901,1757625049834,-1000.0,0.0001861,2]
[384907903,1757625049844,-500.0,0.0001863,2]
[384907905,1757625049853,-500.0,0.0001863,2]
[384907907,1757625049862,-250.39204663,0.00018657,2]
[384907909,1757625049872,-6174.85115683,0.00018659,2]
[384907911,1757625049881,-273.774,0.00018675,2]
[384907913,1757625049891,-2241.53,0.00018729,2]
[384907915,1757625049900,-865.88,0.00018729,2]
[384907917,1757625049909,-658.19,0.00018729,2]
[384907919,1757625049918,-1031.8,0.00018729,2]
[384907921,1757625049928,-928.67,0.00018729,2]
[384907923,1757625049937,-480.0,0.00018729,2]
[384907925,1757625049947,-924.32,0.00018729,2]
[384907927,1757625049956,-1704.95,0.00018729,2]
[384907929,1757625049966,-687.45,0.0001873,2]
[384907931,1757625049975,-480.0,0.0001873,2]
[384907933,1757625049984,-3326.37,0.0001873,2]
[384907935,1757625049993,-937.75,0.0001873,2]
[384907937,1757625050002,-1157.92,0.0001873,2]
[384907938,1757625050011,-490.91,0.0001873,2]
[384907940,1757625050020,-979.73,0.0001873,2]
[384907942,1757625050030,-8625.72,0.0001873,2]
[384907944,1757625050039,-516.33419709,0.0001873,2]
[384907946,1757625050048,-1000.0,0.00018767,2]
[384907948,1757625050057,-1000.0,0.00018767,2]
[384907950,1757625050067,-1000.0,0.0001881,2]
[384907952,1757625050076,-1000.0,0.0001881,2]
[384907954,1757625050085,-486.74,0.0001883,2]
[384907956,1757625050094,-538.62,0.0001883,2]
[384907958,1757625050105,-644.27,0.0001883,2]
[384907960,1757625050114,-597.52,0.0001883,2]
[384907962,1757625050123,-500.0,0.00018856,2]
[384907964,1757625050133,-500.0,0.00018904,2]
[384907966,1757625050142,-500.0,0.00018904,2]
[384907968,1757625050152,-760.0,0.00018929,2]
[384907970,1757625050161,-500.0,0.00018932,2]
[384907972,1757625050170,-1000.0,0.00019001,20]
[384907974,1757625050181,-2241.53,0.00019003,2]
[384907976,1757625050190,-865.88,0.00019003,2]
[384907978,1757625050199,-658.19,0.00019003,2]
[384907980,1757625050212,-1031.8,0.00019003,2]
[384907983,1757625050227,-928.67,0.00019003,2]
[384907985,1757625050241,-480.0,0.00019003,2]